Cogmind - Beta 15 @@@ ROGUE MODE // 2025.10.14 @ 21:20:52 Player: Runagate Result: Self-destructed Performance ------------- Evolutions (2) 1000 Regions Visited (5) 1000 Robots Destroyed (6) 30 Value Destroyed (54) 54 Prototype IDs (23) 460 Alien Tech Used (0) 0 Bonus (300) 300 TOTAL SCORE: 2844 Bonus ------- Aligned with FarCom 300 Cogmind --------- Core Integrity 550/550 Matter 237/300 Energy 125/125 System Corruption 0% Temperature Cool (0) Movement Walking (120) Location -8/Materials Parts ------- > --- POWER (1) -------- Light Ion Engine > --- PROPULSION (4) --- Aluminum Leg Aluminum Leg > --- UTILITY (3) ------ Small Storage Unit Seismic Detector Supersonic Drone Bay (0/1) > --- WEAPON (3) ------- Medium Laser Medium Laser > --- INVENTORY (8) ---- Ion Engine Aluminum Leg Aluminum Leg Medium Laser Medium Laser Rocket Launcher Peak State ------------ > --- POWER ------------ Light Ion Engine > --- PROPULSION ------- Aluminum Leg Aluminum Leg > --- UTILITY ---------- Small Storage Unit Seismic Detector Supersonic Drone Bay > --- WEAPON ----------- Medium Laser Medium Laser > --- INVENTORY -------- Ion Engine Aluminum Leg Aluminum Leg Medium Laser Medium Laser Rocket Launcher [Rating: 15] Favorites ----------- Power Light Ion Engine Engine Light Ion Engine Propulsion Aluminum Leg Leg Aluminum Leg Utility Small Storage Unit Device Seismic Detector Storage Small Storage Unit Weapon Medium Laser Energy Gun Medium Laser Launcher Rocket Launcher Build | -11 -10 -10 -10 -9 -8 ------- Run | Yrd Mat Min Exi Min Mat Slots Evolved 4 | . . . . . 4 Power . | . . . . . . Propulsion 2 | . . . . . 2 Utility 1 | . . . . . 1 Weapon 1 | . . . . . 1 Parts Attached 4 | 1 . . . 2 1 Power . | . . . . . . Engine . | . . . . . . Core . | . . . . . . Reactor . | . . . . . . Propulsion . | . . . . . . Treads . | . . . . . . Leg . | . . . . . . Wheel . | . . . . . . Hover . | . . . . . . Flight . | . . . . . . Utility 2 | 1 . . . . 1 Device 2 | 1 . . . . 1 Storage . | . . . . . . Processor . | . . . . . . Hackware . | . . . . . . Protection . | . . . . . . Artifact . | . . . . . . Weapon 2 | . . . . 2 . Energy Gun 1 | . . . . 1 . Energy Cannon . | . . . . . . Ballistic Gun . | . . . . . . Ballistic Cannon . | . . . . . . Launcher 1 | . . . . 1 . Special Weapon . | . . . . . . Impact Weapon . | . . . . . . Slashing Weapon . | . . . . . . Piercing Weapon . | . . . . . . Special Melee Weapon . | . . . . . . Unidentified Prototypes . | . . . . . . Parts Lost . | . . . . . . Power . | . . . . . . Propulsion . | . . . . . . Utility . | . . . . . . Weapon . | . . . . . . Highest Loss Streak . | . . . . . . To Critical Strikes . | . . . . . . Average Backups 5 | 2 3 5 5 6 6 Power 1 | 1 1 1 1 1 1 Propulsion 1 | . . 2 2 2 2 Utility . | . . . . 1 . Weapon 2 | 1 1 2 2 2 3 Tool/Special . | . . . . . . Unused Backups 4 | . . . 1 . 3 Power . | . . . . . . Propulsion 2 | . . . . . 2 Utility . | . . . . . . Weapon 2 | . . . 1 . 1 Tool/Special . | . . . . . . Average Slot Usage (%) 99 | . 100 100 100 100 72 Engine 13 | . 14 14 14 14 9 Leg 27 | . 28 28 28 28 18 Device 14 | . 14 14 14 14 18 Storage 13 | . 14 14 14 14 9 Energy Gun 27 | . 28 28 28 26 18 Peak Build Rating 15 | 7 7 7 10 9 15 Average Rating 7 | 6 7 7 7 8 15 On Entrance 7 | 6 7 7 7 8 8 Naked Turns . | . . . . . . Heaviest Build 15 | 13 13 13 13 15 14 Greatest Support 20 | 20 20 20 20 20 20 Greatest Overweight (x) . | . . . . . . Average Overweight (x) . | . . . . . . Largest Inventory Capacity 8 | 8 8 8 8 8 8 Average Capacity 8 | 8 8 8 8 8 8 Most Carried 8 | 6 5 5 8 7 6 Average Carried 5 | 2 3 5 5 6 6 Final Capacity 8 | 8 8 8 8 8 8 Final Carried 7 | 2 5 5 6 7 6 Class Distribution -------------------- 100% | Mutant Dominant Class ---------------- Mutant | -10/Materials Mutant | -10/Mines Mutant | -10/Exiles Mutant | -9/Mines Mutant | -8/Materials Resources | -11 -10 -10 -10 -9 -8 ----------- Run | Yrd Mat Min Exi Min Mat Matter Collected 210 | 200 10 . . . . Remotely . | . . . . . . Salvage Created 54 | 13 . . . 41 . Parts 7 | 2 . . . 5 . Haulers Intercepted . | . . . . . . Recyclers Shooed . | . . . . . . Parts Field Recycled . | . . . . . . Retrieved Matter . | . . . . . . Parts Self-Destructed . | . . . . . . Prevented . | . . . . . . Kills | -11 -10 -10 -10 -9 -8 ------- Run | Yrd Mat Min Exi Min Mat Combat Hostiles Destroyed 4 | . . . . 4 . Guns 1 | . . . . 1 . AOE 3 | . . . . 3 . Classes Destroyed 2 | 1 . . . 1 . Tunneler 2 | 1 . . . 1 . Swarmer 4 | . . . . 4 . Best Kill Streak 4 | 1 . . . 4 . Combat Bots Only 4 | . . . . 4 . Max Kills in Single Turn 2 | 1 . . . 2 . Gunslinging . | . . . . . . Exploded 2 | . . . . 2 . Melee . | . . . . . . Uniques/NPCs Destroyed . | . . . . . . Combat | -11 -10 -10 -10 -9 -8 -------- Run | Yrd Mat Min Exi Min Mat Hostile Shots Fired 7 | . . . . 7 . Missed 3 | . . . . 3 . Hits 4 | . . . . 4 . Projectile 4 | . . . . 4 . Damage Taken 36 | . . . . 36 . Core . | . . . . . . Absorbed by Shields . | . . . . . . Core Remaining (%) 100 | 100 . . . 100 . Volleys Fired 7 | 1 2 . . 4 . Largest 2 | 2 2 . . 2 . Hottest 100 | 100 100 . . 100 . Shots Fired 14 | 2 4 . . 8 . Gun 11 | 2 4 . . 5 . Cannon . | . . . . . . Launcher 3 | . . . . 3 . Special . | . . . . . . Kinetic . | . . . . . . Thermal 11 | 2 4 . . 5 . Explosive 3 | . . . . 3 . Electromagnetic . | . . . . . . Robot Hit Streak 2 | 2 1 . . 2 . Robot Miss Streak 3 | . 2 . . 3 . Penetration Max . | . . . . . . Secondary Targets . | . . . . . . Shots Hit Robots 6 | 2 1 . . 3 . Core Hits 6 | 1 . . . 5 . Critical Kills . | . . . . . . Critical Parts Destroyed . | . . . . . . Critical Strikes 2 | 1 1 . . . . Burn 2 | 1 1 . . . . Melee Attacks . | . . . . . . Impact . | . . . . . . Slashing . | . . . . . . Piercing . | . . . . . . Sneak Attacks . | . . . . . . Combat Hostiles . | . . . . . . Follow-up Attacks . | . . . . . . Damage Inflicted 287 | 26 12 . . 249 . Guns 64 | 26 12 . . 26 . Cannons . | . . . . . . Explosions 217 | . . . . 217 . Melee . | . . . . . . Ramming 6 | . . . . 6 . Kinetic . | . . . . . . Thermal 64 | 26 12 . . 26 . Explosive 217 | . . . . 217 . Electromagnetic . | . . . . . . Impact . | . . . . . . Slashing . | . . . . . . Piercing . | . . . . . . Highest Corruption . | . . . . . . Average Corruption . | . . . . . . Corruption Purged . | . . . . . . Corruption Blocked . | . . . . . . Overload Shots . | . . . . . . Overflow Damage 50 | . . . . 50 . Projectiles . | . . . . . . Explosions 50 | . . . . 50 . Melee . | . . . . . . Knockbacks 1 | . . . . 1 . Impact 1 | . . . . 1 . Kinetic . | . . . . . . Secondary . | . . . . . . Self-Inflicted Damage . | . . . . . . Shots . | . . . . . . Rammed . | . . . . . . Targets Rammed 2 | . . . . 2 . Kicked 2 | . . . . 2 . Crushed . | . . . . . . Highest Temperature 63 | 39 39 . . 63 . Average Temperature 24 | 20 20 . . 28 . Received Heat Transfer . | . . . . . . Siege Activations . | . . . . . . Martial Activations . | . . . . . . Shielding Activations . | . . . . . . Robots Disrupted . | . . . . . . Combat Hostiles . | . . . . . . Robots Corrupted . | . . . . . . Combat Hostiles . | . . . . . . Parts Fried . | . . . . . . Impact Corruptions . | . . . . . . Robots Melted . | . . . . . . Combat Hostiles . | . . . . . . Parts Melted 2 | 2 . . . . . Heat Transferred 333 | 148 111 . . 74 . Parts Sabotaged . | . . . . . . Parts Stolen . | . . . . . . Parts Stripped . | . . . . . . Power Chain Reactions . | . . . . . . Alert | -11 -10 -10 -10 -9 -8 ------- Run | Yrd Mat Min Exi Min Mat Maximum Alert Level . | . . . . . . Low Security (%) 100 | 100 100 100 . 100 100 Level 1 . | . . . . . . Level 2 . | . . . . . . Level 3 . | . . . . . . Level 4 . | . . . . . . Level 5 . | . . . . . . High Security . | . . . . . . Max Security . | . . . . . . Peak Influence 116 | 5 . . . 116 37 Initial 37 | . . . . . 37 Average 9 | . . . . 19 36 Influence Increases 126 | 5 . . . 121 . Destroy 0b10 Robot/C 80 | . . . . 80 . Destroy 0b10 Robot/NC 10 | 5 . . . 5 . Destroy Leader 10 | . . . . 10 . Destroy Structure 26 | . . . . 26 . Influence Decreases 99 | 5 . . . 25 69 Entered New Map 59 | . . . . . 59 Time Decay 30 | 5 . . . 25 . Lost Ally 10 | . . . . . 10 Squads Dispatched 1 | . 1 . . . . Investigation . | . . . . . . Extermination . | . . . . . . Reinforcement 1 | . 1 . . . . Assault . | . . . . . . Garrison . | . . . . . . Intercept . | . . . . . . Searches Triggered . | . . . . . . Construction Impeded . | . . . . . . Haulers Reinforced . | . . . . . . Active Scanning Responses . | . . . . . . Cargo Convoy Interrupts . | . . . . . . Stealth | -11 -10 -10 -10 -9 -8 --------- Run | Yrd Mat Min Exi Min Mat Distress Signals . | . . . . . . Communications Jammed . | . . . . . . Distress Signals . | . . . . . . Times Spotted 5 | . 1 . . 4 . Peak Tracking Total 2 | . 1 . . 2 . Tactical Retreats . | . . . . . . Traps | -11 -10 -10 -10 -9 -8 ------- Run | Yrd Mat Min Exi Min Mat Traps Triggered . | . . . . . . Indirectly . | . . . . . . Trap Hack Attempts . | . . . . . . Triggered . | . . . . . . Disarmed . | . . . . . . Reprogrammed . | . . . . . . Reused . | . . . . . . Traps Extracted . | . . . . . . Installed . | . . . . . . Triggered . | . . . . . . Machines | -11 -10 -10 -10 -9 -8 ---------- Run | Yrd Mat Min Exi Min Mat Machines Disabled . | . . . . . . Max in Single Turn . | . . . . . . Machines Repaired . | . . . . . . Machines Dismantled . | . . . . . . Machines Sabotaged . | . . . . . . Overloaded Fab Kills . | . . . . . . Hacking | -11 -10 -10 -10 -9 -8 --------- Run | Yrd Mat Min Exi Min Mat Machines Accessed 2 | . 1 . 1 . . Terminals 1 | . 1 . . . . Fabricators . | . . . . . . Repair Stations . | . . . . . . Recycling Units . | . . . . . . Scanalyzers . | . . . . . . Garrison Access . | . . . . . . Total Hacks 6 | . 5 . 1 . . Successful 3 | . 2 . 1 . . Failed 3 | . 3 . . . . Catastrophic . | . . . . . . Database Lockouts . | . . . . . . Manual 6 | . 5 . 1 . . Terminals 5 | . 5 . . . . Fabricators . | . . . . . . Repair Stations . | . . . . . . Recycling Units . | . . . . . . Scanalyzers . | . . . . . . Garrison Access . | . . . . . . Terminal Hacks 1 | . . . 1 . . Proto ID Catalog 1 | . . . 1 . . Fabricator Hacks . | . . . . . . Repair Station Hacks . | . . . . . . Recycling Unit Hacks . | . . . . . . Scanalyzer . | . . . . . . Garrison Access Hacks . | . . . . . . Unauthorized Hacks 2 | . 2 . . . . Terminals 2 | . 2 . . . . Botnet 1 | . 1 . . . . Skim 1 | . 1 . . . . Fabricators . | . . . . . . Repair Stations . | . . . . . . Recycling Units . | . . . . . . Scanalyzers . | . . . . . . Garrison Access . | . . . . . . Data Cores Recovered . | . . . . . . Used . | . . . . . . Hacking Detections 1 | . 1 . . . . Full Trace Events . | . . . . . . Feedback Events . | . . . . . . Feedback Blocked . | . . . . . . Robot Schematics Acquired . | . . . . . . Robots Built . | . . . . . . Authchips . | . . . . . . Time . | . . . . . . Total Robot Build Rating . | . . . . . . Part Schematics Acquired . | . . . . . . Parts Built . | . . . . . . Authchips . | . . . . . . Time . | . . . . . . Total Part Build Rating . | . . . . . . Parts Repaired . | . . . . . . Time . | . . . . . . Parts Recycled . | . . . . . . Recycled Matter . | . . . . . . Retrieved Matter . | . . . . . . Retrieved Components . | . . . . . . Parts Scanalyzed . | . . . . . . Part Schematics Acquired . | . . . . . . Parts Damaged . | . . . . . . Bothacking | -11 -10 -10 -10 -9 -8 ------------ Run | Yrd Mat Min Exi Min Mat Used RIF Installer . | . . . . . . Robots Hacked . | . . . . . . Non-combat . | . . . . . . Combat . | . . . . . . Robot Hacks Applied . | . . . . . . Relay Couplers Released . | . . . . . . Fabnet Peak Effective % . | . . . . . . Robots Rewired . | . . . . . . Allies Hacked . | . . . . . . Hacks Repelled . | . . . . . . Allies | -11 -10 -10 -10 -9 -8 -------- Run | Yrd Mat Min Exi Min Mat Total Allies . | . . . . . . Largest Group . | . . . . . . Highest-Rated Group . | . . . . . . Highest-Rated Ally . | . . . . . . Total Orders 1 | . . . . . 1 EXPLORE 1 | . . . . . 1 Ally Attacks . | . . . . . . Total Damage . | . . . . . . Kills . | . . . . . . Allies Corrupted . | . . . . . . Allies Melted . | . . . . . . Intel | -11 -10 -10 -10 -9 -8 ------- Run | Yrd Mat Min Exi Min Mat Active Infowar (turns) 722 | 4 168 52 262 226 10 Seismic 722 | 4 168 52 262 226 10 Robot Analysis Total . | . . . . . . Derelict Logs Recovered . | . . . . . . Drone Launches 1 | . . . . . 1 Drone Recoveries . | . . . . . . Exploration | -11 -10 -10 -10 -9 -8 ------------- Run | Yrd Mat Min Exi Min Mat Turns Passed 765 | 47 168 52 262 226 10 Spaces Moved 601 | 34 132 43 217 173 2 Core . | . . . . . . Treads . | . . . . . . Legs 601 | 34 132 43 217 173 2 Wheels . | . . . . . . Hover . | . . . . . . Flight . | . . . . . . Fastest Speed 120 | 120 120 120 120 120 120 Average Speed 120 | 120 120 120 120 120 120 Slowest Speed 120 | 120 120 120 120 120 120 Overloaded Moves . | . . . . . . Propulsion Burnouts . | . . . . . . Robots Hopped . | . . . . . . Potential Cave-ins . | . . . . . . Cave-ins Triggered . | . . . . . . Exploration Rate (%) 29 | 3 34 21 43 45 30 Regions Visited 5 Branch Regions 3 Pre-discovered Areas . | . . . . . . Known Exits Taken . | . . . . . . Unknown Exits Taken 5 | 1 1 1 1 1 . Scrap Searched . | . . . . . . Spaces Dug . | . . . . . . Terrain Destroyed 34 | . . . . 34 . Melee . | . . . . . . Projectile . | . . . . . . AOE 34 | . . . . 34 . Terrain Rammed . | . . . . . . Walls Destroyed . | . . . . . . Machines Disabled . | . . . . . . Actions | -11 -10 -10 -10 -9 -8 --------- Run | Yrd Mat Min Exi Min Mat Total 629 | 39 137 43 219 182 9 Wait 9 | . 1 1 . 1 6 Move 596 | 33 131 42 216 172 2 Hop . | . . . . . . Pick Up 6 | . 3 . 2 1 . Fast Attach 1 | 1 . . . . . Attach 1 | . . . . . 1 Detach . | . . . . . . Swap 2 | . . . . 2 . Drop 5 | 4 . . 1 . . Fire 7 | 1 2 . . 4 . Melee . | . . . . . . Ram . | . . . . . . Kick 2 | . . . . 2 . Crush . | . . . . . . Escape Stasis . | . . . . . . Rewire . | . . . . . . Trap . | . . . . . . Miscellaneous . | . . . . . . Route ------- -11/Scrapyard -10/Materials (discovered 3 exits: [*Mat x2] / [*Min]) -10/Mines (discovered 2 exits: [*Mat] / *Exi) -10/Exiles -9/Mines -8/Materials (discovered 1 exit: [*Fac]) History --------- Turn | Location | Event 1 | -11/Scrapyard | Discovered new exit (range 3) 48 | -11/Scrapyard | Entered Materials 128 | -10/Materials | Discovered new exit (range 9) 137 | -10/Materials | Met 8R-AWN 175 | -10/Materials | Discovered new exit (range 15) 197 | -10/Materials | Discovered new exit (range 15) 216 | -10/Materials | Entered Mines 218 | -10/Mines | Followed 8R-AWN into the Mines 233 | -10/Mines | Discovered new exit (range 9) 263 | -10/Mines | Discovered new exit (range 5) 268 | -10/Mines | Entered Exiles 301 | -10/Exiles | Welcomed by 8R-AWN 312 | -10/Exiles | Build established: Mutant 318 | -10/Exiles | Met EX-HEX 350 | -10/Exiles | Met EX-BIN 364 | -10/Exiles | Aligned with FarCom system 366 | -10/Exiles | Given EX-Vault access code 394 | -10/Exiles | Opened EX-Vault 403 | -10/Exiles | Found AWS/Autocannon 409 | -10/Exiles | Found Supersonic Drone Bay 433 | -10/Exiles | Warned to stay clear of 0b10 Research branches 483 | -10/Exiles | Learned about 8R-AWN's background 515 | -10/Exiles | Discovered new exit (range 14) 530 | -10/Exiles | Left Exiles lab with Supersonic Drone Bay 530 | -10/Exiles | Entered Mines 549 | -9/Mines | Received a Rocket Launcher from a helpful Derelict 741 | -9/Mines | Discovered new exit (range 15) 756 | -9/Mines | Entered Materials 756 | -8/Materials | Evolved 4 slots: Propulsion x2, Utility x1, Weapon x1 763 | -8/Materials | Discovered new exit (range 73) 766 | -8/Materials | Self-destructed Last Messages --------------- 00718_ S-10 Pest destroyed. 00726_ U-05 Engineer lays Concrete. 00728_ U-05 Engineer builds a Wall. 00731_ The unstable cave ceiling collapses. 00731_ U-05 Engineer lays Concrete. 00735_ T-07 Excavator is excavating. 00737_ R-06 Scavenger collects Lgt. Assault Rifle. 00739_ T-07 Excavator is excavating. 00741_ EXIT=FOUND 00743_ T-07 Excavator is excavating. PARAMETERS=PROPULSION+2,UTILITY+1,WEAPON+1 LOCATION=UNKNOWN GOAL=ESCAPE 00756_ Receiving FarCom transmissions... 00758_ Trailblazer released from Supersonic Drone Bay. 00763_ EXIT=FOUND 00765_ Slug penetrates Wall. 00765_ Trailblazer destroyed. Map ----- +----------------------------------------------------+ | #????????# """ #??# """ + #???? | | #????????# """ #??# """ ###### #???? | | #????????# #??# #????# #???? | | ####?????# #??########????# #???? | | #?????##+########???????????# #???? | | ### #??##??# # #??########## #???? | | ??# ### ## # """ #??# #???? | | ??# " + """ #??# ########+#???? | | ??# ### ## # """ #??# #????????????? | | ??# #??##??# # #??# #????????????? | | ###+###????# # ! [ #??# #????????????? | | #????# ########??# #????????????? | | #????# #?????????# #????????????? | | #????# #?????????# #????????????? | | ############+########### #????????????? | | #???# + #????????????? | | #???# ! "T" #########????????????? | | #???# #????????????????????? | | #???#! ! #????????????????????? | | #???###########????????????????????? | | #??????????????????????????????????? | | #??????????????????????????????????? | | #??????????????????????????????????? | | #??????????????????????????????????? | | #?????????################?????????? | | #?????????# @ #?????????? | | ########### #?????????? | | #?????????? | | ##############+#############?????????? | | #?????????# #?????????????????? | | #?????????# = """""#?????????????????? | | ##?????????# """""#?????????????????? | | ???????????# """""#?????????????????? | | ???????????# """""#?????????????????? | | ???????????# """""#?????????????????? | | ???????????# [ """""#?????????????????? | | ???????????# """""#?????????????????? | | ???????????# #?????????????????? | | ????????????########??????????????????? | | | | | | | | | | | | | | | | | | | | | | | +----------------------------------------------------+ Best States ------------- Heat Dissipation 31 Energy Generation 10 Energy Capacity 125 Matter Stores 300 Matter Capacity 300 Sight Range 16 Terrain Scan Density 10 Evasion (%) 55 Item Schematics ----------------- None Robot Schematics ------------------ None Fabricated ------------ Nothing Repaired ---------- Nothing Alien Tech Used ----------------- None Achievements -------------- None Challenges ------------ None Game ------ Seed ThermalConceptWings Manual? 0 Play Time 00:04:31 Cumulative 169.2 hours Start 2025.10.14 @ 21:16:20 End 2025.10.14 @ 21:20:52 Sessions 1 Manual Loads 0 Difficulty Rogue Special Mode None Game No. 297 Rogue 295 Adventurer 0 Explorer 2 Win Type - Total 1 Types 1/0/0/0/0/0/0/0/0/0 Lore% 47 Gallery% 56 Achievement% 46 Wizard Run 0 Options --------- Layout 2 ASCII 0 Keyboard 1 Movement Arrows Keybinds 0 Fullscreen 1 Font 28/SmallcapsGlow Map View 50x49 Zoom Use 0% Tactical HUD 1 Map Filters NONE Filters NONE Steam 1 RUN: e7c70788-0372-4e33-8feb-bc91e3ff185c